fUSD/lending_fUSD_20240701
["ID","MTS","AMOUNT","RATE_DAILY","PERIOD"]
[330845071,1719859848192,-299.330384,0.00021882,2]
[330845072,1719859848202,-299.330384,0.00021882,2]
[330845073,1719859848211,-159.756169,0.00021882,2]
[330845074,1719859848221,-159.756169,0.00021882,2]
[330845075,1719859848231,-299.330384,0.00021882,2]
[330845076,1719859848241,-299.330384,0.00021882,2]
[330845077,1719859848252,-151.0,0.00021882,2]
[330845078,1719859848261,-151.0,0.00021882,2]
[330845079,1719859848271,-520.21456572,0.00021882,2]
[330845080,1719859848597,-1.70529128,0.00021882,2]
[330845081,1719859848607,-521.919857,0.00021882,2]
[330845082,1719859848616,-521.919857,0.00021882,2]
[330845083,1719859848625,-521.919857,0.00021882,2]
[330845084,1719859848636,-359.724421,0.00021882,2]
[330845085,1719859848646,-359.724421,0.00021882,2]
[330845086,1719859848655,-359.724421,0.00021882,2]
[330845087,1719859848664,-359.724421,0.00021882,2]
[330845088,1719859848674,-151.0,0.00021882,2]
[330845089,1719859848684,-151.0,0.00021882,2]
[330845090,1719859848693,-151.0,0.00021882,2]
[330845091,1719859848702,-151.0,0.00021882,2]
[330845092,1719859848711,-151.0,0.00021882,2]
[330845093,1719859848721,-151.0,0.00021882,2]
[330845094,1719859848730,-171.316504,0.00021882,2]
[330845095,1719859848739,-171.316504,0.00021882,2]
[330845096,1719859848750,-171.316504,0.00021882,2]
[330845097,1719859848760,-171.316504,0.00021882,2]
[330845098,1719859848769,-319.235462,0.00021882,2]
[330845099,1719859848780,-319.235462,0.00021882,2]
[330845100,1719859848790,-151.0,0.00021882,2]
[330845101,1719859848799,-188.272434,0.00021882,2]
[330845102,1719859848809,-319.235462,0.00021882,2]
[330845103,1719859848819,-319.235462,0.00021882,2]
[330845104,1719859848828,-272.81493,0.00021882,2]
[330845105,1719859848838,-272.81493,0.00021882,2]
[330845106,1719859848847,-272.81493,0.00021882,2]
[330845107,1719859848856,-272.81493,0.00021882,2]
[330845108,1719859848866,-3159.3089404,0.00021882,2]
[330845109,1719859848876,-151.0,0.00021882,2]
[330845110,1719859848885,-151.0,0.00021882,2]
[330845111,1719859848894,-290.333912,0.00021882,2]
[330845112,1719859848903,-290.333912,0.00021882,2]
[330845113,1719859848912,-290.333912,0.00021882,2]
[330845114,1719859848924,-290.333912,0.00021882,2]
[330845115,1719859848934,-455.168896,0.00021882,2]
[330845116,1719859848943,-455.168896,0.00021882,2]
[330845117,1719859848952,-455.168896,0.00021882,2]
[330845118,1719859848962,-455.168896,0.00021882,2]
[330845119,1719859848971,-152.549007,0.00021882,2]
[330845120,1719859848981,-151.0,0.00021882,2]
[330845121,1719859848990,-151.0,0.00021882,2]
[330845122,1719859849000,-151.0,0.00021882,2]
[330845123,1719859849009,-151.0,0.00021882,2]
[330845124,1719859849019,-607.971732,0.00021882,2]
[330845125,1719859849029,-607.971732,0.00021882,2]
[330845126,1719859849039,-607.971732,0.00021882,2]
[330845127,1719859849048,-373.974117,0.00021882,2]
[330845128,1719859849058,-607.971738,0.00021882,2]
[330845129,1719859849068,-373.974117,0.00021882,2]
[330845130,1719859849077,-373.974117,0.00021882,2]
[330845131,1719859849088,-373.974125,0.00021882,2]
[330845132,1719859849098,-151.0,0.00021882,2]
[330845133,1719859849108,-724.090288,0.00021882,2]
[330845134,1719859849118,-151.0,0.00021882,2]
[330845135,1719859849129,-724.090288,0.00021882,2]
[330845136,1719859849139,-724.090288,0.00021882,2]
[330845137,1719859849149,-724.090289,0.00021882,2]
[330845138,1719859849159,-210.715728,0.00021882,2]
[330845139,1719859849169,-1131.336861,0.00021882,2]
[330845140,1719859849178,-1131.336861,0.00021882,2]
[330845141,1719859849188,-1131.336861,0.00021882,2]
[330845142,1719859849197,-1131.336867,0.00021882,2]
[330845143,1719859849206,-151.0,0.00021882,2]
[330845144,1719859849216,-667.589417,0.00021882,2]
[330845145,1719859849225,-151.0,0.00021882,2]
[330845146,1719859849234,-667.589425,0.00021882,2]
[330845147,1719859849244,-151.0,0.00021882,2]
[330845148,1719859849254,-300.0,0.00021883,2]
[330845149,1719859849264,-300.0,0.00021883,2]
[330845150,1719859849273,-300.0,0.00021883,2]
[330845151,1719859849283,-300.0,0.00021883,2]
[330845152,1719859849292,-300.0,0.00021883,2]
[330845153,1719859849302,-300.0,0.00021883,2]
[330845154,1719859849311,-300.0,0.00021883,2]
[330845155,1719859849321,-300.0,0.00021883,2]
[330845156,1719859849331,-300.0,0.00021883,2]
[330845157,1719859849340,-150.0,0.00021883,2]
[330845158,1719859849349,-150.0,0.00021883,2]
[330845159,1719859849359,-300.0,0.00021884,2]
[330845160,1719859849369,-300.0,0.00021884,2]
[330845161,1719859849380,-151.0,0.00021884,2]
[330845162,1719859849390,-151.0,0.00021884,2]
[330845163,1719859849402,-235.008372,0.00021884,2]
[330845164,1719859849412,-159.756169,0.00021884,2]
[330845165,1719859849422,-159.756169,0.00021884,2]
[330845166,1719859849432,-299.330384,0.00021884,2]
[330845167,1719859849443,-299.330384,0.00021884,2]
[330845168,1719859849452,-159.756169,0.00021884,2]
[330845169,1719859849462,-159.756169,0.00021884,2]
[330845170,1719859849472,-299.330384,0.00021884,2]
[330845171,1719859849484,-299.330384,0.00021884,2]
[330845172,1719859849494,-151.0,0.00021884,2]
[330845173,1719859849504,-521.919857,0.00021884,2]
[330845174,1719859849515,-521.919857,0.00021884,2]
[330845175,1719859849524,-521.919857,0.00021884,2]
[330845176,1719859849534,-521.919857,0.00021884,2]
[330845177,1719859849544,-359.724421,0.00021884,2]
[330845178,1719859849555,-359.724421,0.00021884,2]
[330845179,1719859849565,-359.724421,0.00021884,2]
[330845180,1719859849575,-359.724421,0.00021884,2]
[330845181,1719859849585,-151.0,0.00021884,2]
[330845182,1719859849594,-151.0,0.00021884,2]
[330845183,1719859849604,-151.0,0.00021884,2]
[330845184,1719859849613,-151.0,0.00021884,2]
[330845185,1719859849624,-151.0,0.00021884,2]
[330845186,1719859849636,-209.446964,0.00021884,2]
[330845187,1719859849646,-171.316504,0.00021884,2]
[330845188,1719859849656,-171.316504,0.00021884,2]
[330845189,1719859849666,-171.316504,0.00021884,2]
[330845190,1719859849676,-171.316504,0.00021884,2]
[330845191,1719859849686,-319.235462,0.00021884,2]
[330845192,1719859849695,-319.235462,0.00021884,2]
[330845193,1719859849705,-319.235462,0.00021884,2]
[330845194,1719859849715,-319.235462,0.00021884,2]
[330845195,1719859849725,-272.81493,0.00021884,2]
[330845196,1719859849737,-272.81493,0.00021884,2]
[330845197,1719859849746,-272.81493,0.00021884,2]
[330845198,1719859849756,-272.814932,0.00021884,2]
[330845199,1719859849766,-151.0,0.00021884,2]
[330845200,1719859849776,-151.0,0.00021884,2]
[330845201,1719859849786,-290.333912,0.00021884,2]
[330845202,1719859849796,-290.333912,0.00021884,2]
[330845203,1719859849806,-290.333912,0.00021884,2]
[330845204,1719859849818,-290.333904,0.00021884,2]
[330845205,1719859849827,-455.168896,0.00021884,2]
[330845206,1719859849837,-455.168896,0.00021884,2]
[330845207,1719859849847,-455.168896,0.00021884,2]
[330845208,1719859849856,-455.168901,0.00021884,2]
[330845209,1719859849866,-151.0,0.00021884,2]
[330845210,1719859849875,-151.0,0.00021884,2]
[330845211,1719859849886,-150.0,0.00021884,2]
[330845212,1719859849896,-151.0,0.00021885,2]
[330845213,1719859849907,-151.0,0.00021885,2]
[330845214,1719859849917,-159.756169,0.00021885,2]
[330845215,1719859849928,-299.330384,0.00021885,2]
[330845216,1719859849938,-159.756169,0.00021885,2]
[330845217,1719859849947,-299.330384,0.00021885,2]
[330845218,1719859849958,-2443.6316464,0.00021885,2]
[330845219,1719859849968,-150.0,0.00021885,2]
[330845220,1719859849978,-300.0,0.00021885,2]
[330845221,1719859849993,-300.0,0.00021885,2]
[330845222,1719859850004,-300.0,0.00021885,2]
[330845223,1719859850014,-300.0,0.00021885,2]
[330845224,1719859850024,-300.0,0.00021885,2]
[330845225,1719859850034,-500.0,0.00021886,2]
[330845226,1719859850044,-151.0,0.00021886,2]
[330845227,1719859850053,-159.756169,0.00021886,2]
[330845228,1719859850064,-299.330384,0.00021886,2]
[330845229,1719859850074,-159.756169,0.00021886,2]
[330845230,1719859850083,-299.330384,0.00021886,2]
[330845231,1719859850093,-521.919857,0.00021886,2]
[330845232,1719859850103,-521.919857,0.00021886,2]
[330845233,1719859850116,-521.919857,0.00021886,2]
[330845234,1719859850126,-521.919857,0.00021886,2]
[330845235,1719859850136,-359.724421,0.00021886,2]
[330845236,1719859850145,-359.724421,0.00021886,2]
[330845237,1719859850155,-359.724421,0.00021886,2]
[330845238,1719859850164,-359.724422,0.00021886,2]
[330845239,1719859850174,-151.0,0.00021886,2]
[330845240,1719859850184,-267.001176,0.00021886,2]
[330845241,1719859850194,-151.0,0.00021886,2]
[330845242,1719859850204,-151.0,0.00021886,2]
[330845243,1719859850214,-171.316504,0.00021886,2]
[330845244,1719859850223,-171.316504,0.00021886,2]
[330845245,1719859850233,-171.316504,0.00021886,2]
[330845246,1719859850244,-171.316504,0.00021886,2]
[330845247,1719859850253,-319.235462,0.00021886,2]
[330845248,1719859850263,-319.235462,0.00021886,2]
[330845249,1719859850273,-319.235462,0.00021886,2]
[330845250,1719859850283,-319.23546,0.00021886,2]
[330845251,1719859850293,-1727.9543524,0.00021886,2]
[330845252,1719859850302,-1012.2770585,0.00021886,2]
[330845253,1719859850313,-150.0,0.00021886,2]
[330845254,1719859850323,-300.0,0.00021886,2]
[330845255,1719859850332,-2714.0,0.00021887,30]
[330845256,1719859850342,-621.0,0.00021887,30]
[330845257,1719859850352,-151.0,0.00021887,2]
[330845258,1719859850361,-159.756169,0.00021887,2]
[330845259,1719859850371,-299.330384,0.00021887,2]
[330845260,1719859850381,-159.756178,0.00021887,2]
[330845261,1719859850392,-299.33039,0.00021887,2]
[330845262,1719859850406,-8398.6844795,0.00021887,2]
[330845263,1719859850415,-6497.0118249,0.00021887,2]
[330845264,1719859850425,-4595.3391702,0.00021887,2]
[330845265,1719859850436,-2693.6665156,0.00021887,2]
[330845266,1719859850446,-791.993861,0.00021887,2]
[330845267,1719859850456,-158709.3377523,0.00021887,2]
[330845268,1719859850466,-59199.63535422,0.00021887,2]
[330845269,1719859850683,-165.829103,0.00018765,2]
[330845270,1719859850693,-151.0,0.00021187,2]
[330845271,1719859850702,-125.63589699,0.0002157,2]
[330845272,1719859851019,-1302.41759654,0.00017826,2]
[330845273,1719859851066,-1898.72246372,0.00017826,2]
[330845274,1719859851079,-3782.8,0.00017826,2]
[330845275,1719859851492,-13200.1533378,0.00017826,2]
[330845276,1719859851532,-11888.53660194,0.00017826,2]
[330845277,1719859851542,-25.36410301,0.0002157,2]
[330845278,1719859851552,-151.0,0.0002167,2]
[330845279,1719859851562,-151.0,0.0002168,2]
[330845280,1719859851572,-187.95847284,0.00021708,2]
[330845281,1719859851582,-4386.45016471,0.00021887,2]
[330845282,1719859851599,-59204.09486627,0.00021887,2]
[330845283,1719859851610,-50514.25615694,0.00021887,2]
[330845334,1719860547704,5218.02589392,0.00011199,2]
[330845335,1719860547728,39000.0,0.00011199,2]
[330845336,1719860547753,36642.84962543,0.00011199,2]
[330845337,1719860600702,1750.08927403,0.00011199,2]
[330845338,1719860613227,607.06110054,0.00011199,2]
[330845339,1719860613252,759.67535944,0.00011199,2]
[330845342,1719860722717,150.518,0.00011087,2]
[330845343,1719860739742,150.0,0.00011087,2]
[330845344,1719860752291,152.09217,0.00011087,2]
[330845345,1719860946231,1069.94736295,0.00011199,2]
[330845346,1719860960406,200.0,0.00011143,2]
[330845347,1719860989305,318.23554472,0.00011199,2]
[330845348,1719861023960,206.12734629,0.00011199,2]
[330845349,1719861029381,242.12454532,0.00011199,2]
[330845367,1719861032137,-155.0,0.00012273,2]
[330845368,1719861032148,-155.0,0.00012273,2]
[330845369,1719861032158,-328.54104863,0.00012273,2]
[330845370,1719861032168,-155.0,0.00012302,2]
[330845371,1719861032178,-156.92582076,0.00012302,2]
[330845372,1719861032193,-155.0,0.00012302,2]
[330845383,1719861032678,-366.37839217,0.00012302,2]
[330845385,1719861032709,-366.11090361,0.00012302,2]
[330845386,1719861032733,-263.41362794,0.00012302,2]
[330845387,1719861032746,-300.0,0.00012313,2]
[330845388,1719861032755,-217.84498894,0.00012314,2]
[330845389,1719861032765,-155.39467061,0.00012314,2]
[330845390,1719861032774,-155.0,0.00012314,2]
[330845391,1719861032784,-155.29100335,0.00012314,2]
[330845392,1719861032794,-553.0,0.00013127,2]
[330845393,1719861032805,-420.0,0.00013513,2]
[330845394,1719861032816,-155.0,0.00013849,2]
[330845395,1719861032825,-407.69319535,0.00014829,2]
[330845396,1719861032838,-179.30680465,0.00014829,2]
[330845397,1719861032847,-265.19447259,0.00016274,2]
[330845400,1719861037978,-180.95765977,0.00012273,2]
[330845401,1719861037988,-155.22473535,0.00012302,2]
[330845402,1719861037997,-557.80552741,0.00016274,2]
[330845403,1719861038006,-300.0,0.00017259,2]
[330845404,1719861038016,-81.65827747,0.00017259,2]
[330845405,1719861038027,-101.60172253,0.00017259,2]
[330845406,1719861038036,-499.99,0.00017828,2]
[330845407,1719861038045,-981.87,0.00017828,2]
[330845408,1719861038054,-927.0,0.0001786,2]
[330845409,1719861038064,-8202.05,0.00018081,2]
[330845410,1719861038074,-460.54,0.00018099,2]
[330845411,1719861038083,-11661.38,0.00018533,2]
[330845412,1719861038093,-625.64470959,0.00018835,2]
[330845413,1719861038102,-250.0,0.00018923,2]
[330845414,1719861038111,-526.78,0.00018933,2]
[330845415,1719861038122,-1000.0,0.00018957,2]
[330845416,1719861038131,-250.0,0.00018959,2]
[330845417,1719861038140,-346.03148912,0.00018999,2]
[330845418,1719861038149,-227.0716558,0.00018999,2]
[330845419,1719861038158,-500.0,0.000192,7]
[330845420,1719861038171,-996.02,0.00019253,30]
[330845421,1719861038180,-452.61,0.00019275,2]
[330845422,1719861038190,-270.0,0.00019278,2]
[330845423,1719861038199,-165.61,0.00019328,2]
[330845424,1719861038209,-2014.92,0.00019328,2]
[330845425,1719861038219,-3106.52214219,0.00019354,2]
[330845426,1719861038229,-526.2798675,0.00019354,2]
[330845427,1719861038239,-434.93719891,0.00019389,2]
[330845428,1719861038248,-451.20366451,0.00019389,2]
[330845429,1719861038257,-235.47260692,0.00019399,2]
[330845431,1719861038267,-157.52085627,0.00019451,2]
[330845433,1719861038276,-240.38467831,0.0001946,2]
[330845435,1719861038285,-23900.0,0.00019461,2]
[330845437,1719861038294,-250.0,0.00019524,2]
[330845439,1719861038303,-202.21267486,0.00019548,2]
[330845440,1719861038313,-155.43149466,0.00019548,2]
[330845442,1719861038323,-474.63082794,0.00019548,2]
[330845444,1719861038332,-150.0,0.00019701,4]
[330845446,1719861038342,-3032.0,0.000198,3]
[330845447,1719861038351,-839.0,0.000198,3]
[330845448,1719861038360,-150.0,0.00019884,4]
[330845449,1719861038369,-246.52,0.00019921,2]
[330845450,1719861038379,-188.85,0.00019925,2]
[330845451,1719861038388,-169.96,0.00019982,2]
[330845452,1719861038397,-150.0,0.0002,2]
[330845453,1719861038407,-150.0,0.00020066,4]
[330845454,1719861038416,-150.90846158,0.00020212,2]
[330845455,1719861038426,-150.0,0.00020249,4]
[330845456,1719861038435,-247.94,0.00020324,2]
[330845457,1719861038445,-247.94,0.00020329,2]
[330845458,1719861038455,-247.94,0.00020335,2]
[330845459,1719861038464,-247.94,0.0002034,2]
[330845460,1719861038474,-247.94,0.00020345,2]
[330845461,1719861038483,-247.94,0.00020351,2]
[330845462,1719861038492,-247.94,0.00020356,2]
[330845463,1719861038501,-247.94,0.00020361,2]
[330845464,1719861038511,-460.54,0.00020363,2]
[330845465,1719861038521,-247.94,0.00020367,2]
[330845466,1719861038530,-247.94,0.00020372,2]
[330845467,1719861038539,-247.94,0.00020377,2]
[330845468,1719861038549,-247.94,0.00020383,2]
[330845469,1719861038559,-162.42,0.00020383,2]
[330845470,1719861038570,-247.94,0.00020388,2]
[330845471,1719861038579,-247.94,0.00020393,2]
[330845472,1719861038588,-247.94,0.00020399,2]
[330845473,1719861038598,-247.94,0.00020404,2]
[330845474,1719861038608,-247.94,0.0002041,2]
[330845475,1719861038618,-247.94,0.00020415,2]
[330845476,1719861038627,-247.94,0.0002042,2]
[330845477,1719861038636,-247.94,0.00020426,2]
[330845478,1719861038646,-150.0,0.00020431,4]
[330845479,1719861038655,-1027.37490661,0.00020506,2]
[330845480,1719861038664,-63777.0,0.00020565,2]
[330845481,1719861038674,-150.0,0.00020613,4]
[330845482,1719861038684,-312.2489,0.0002071,2]
[330845483,1719861038693,-151.0,0.00020764,2]
[330845484,1719861038702,-150.0,0.00020796,4]
[330845485,1719861038712,-1000.0,0.00020812,2]
[330845486,1719861038721,-193.73395134,0.00020929,2]
[330845487,1719861038730,-150.0,0.00020978,4]
[330845488,1719861038740,-225.19167095,0.00021,2]
[330845489,1719861038751,-1820.0,0.00021029,2]
[330845490,1719861038760,-358.0,0.00021029,2]
[330845491,1719861038770,-442.0,0.00021029,2]
[330845492,1719861038779,-812.0,0.00021029,2]
[330845493,1719861038789,-448.0,0.00021029,2]
[330845494,1719861038803,-166.0,0.00021029,2]
[330845495,1719861038813,-618.0,0.00021029,2]
[330845496,1719861038823,-1303.0,0.00021029,2]
[330845497,1719861038833,-2408.0,0.00021029,2]
[330845498,1719861038844,-193.73395128,0.00021049,2]
[330845499,1719861038853,-151.0,0.00021052,2]
[330845500,1719861038863,-151.0,0.00021118,2]
[330845501,1719861038874,-1838.7809,0.00021152,2]
[330845502,1719861038884,-501.1919,0.00021152,2]
[330845503,1719861038894,-150.0,0.00021161,4]
[330845504,1719861038904,-193.73395128,0.00021169,2]
[330845505,1719861038914,-193.73395128,0.00021289,2]
[330845506,1719861038924,-1000.0,0.00021327,2]
[330845507,1719861038933,-151.0,0.0002134,2]
[330845508,1719861038943,-305.67,0.00021342,2]
[330845509,1719861038952,-150.0,0.00021343,4]
[330845510,1719861038962,-600.0,0.0002136,2]
[330845511,1719861038971,-2500.0,0.000214,2]
[330845512,1719861038981,-193.73395128,0.00021409,2]
[330845513,1719861038991,-1065.34512434,0.00021449,2]
[330845514,1719861039001,-1081.01401275,0.00021449,2]
[330845515,1719861039012,-1081.11461902,0.00021449,2]
[330845516,1719861039022,-2500.0,0.00021493,2]
[330845517,1719861039032,-150.90846159,0.00021502,2]
[330845518,1719861039044,-9353.61856266,0.0002151,2]
[330845519,1719861039054,-150.0,0.00021526,4]
[330845520,1719861039064,-193.73395128,0.0002153,2]
[330845521,1719861039078,-1000.0,0.0002157,2]
[330845522,1719861039088,-9353.61856266,0.00021593,2]
[330845523,1719861039101,-151.0,0.00021629,2]
[330845524,1719861039111,-384.77028012,0.00021632,2]
[330845525,1719861039121,-509.93,0.00021644,2]
[330845526,1719861039131,-150.0,0.00021649,2]
[330845527,1719861039141,-193.73395128,0.0002165,2]
[330845528,1719861039151,-150.0,0.00021655,2]
[330845529,1719861039161,-685.15907,0.0002167,2]
[330845530,1719861039172,-9353.61856266,0.00021677,2]
[330845531,1719861039183,-193.41797284,0.000217,2]
[330845532,1719861039193,-150.0,0.00021708,4]
[330845533,1719861039203,-150.0,0.00021718,2]
[330845534,1719861039214,-500.0,0.00021728,2]
[330845535,1719861039224,-200.0,0.00021728,2]
[330845536,1719861039234,-500.0,0.00021741,2]
[330845537,1719861039244,-1487.74271587,0.00021747,10]
[330845538,1719861039255,-9353.61856266,0.0002176,2]
[330845539,1719861039264,-193.73395128,0.0002177,2]
[330845540,1719861039275,-150.0,0.00021775,2]
[330845541,1719861039284,-30037.0164,0.00021787,2]
[330845542,1719861039294,-500.0,0.00021787,2]
[330845543,1719861039304,-12048.2787,0.00021787,2]
[330845544,1719861039314,-10907.9170431,0.0002179,2]
[330845545,1719861039325,-501.0,0.000218,2]
[330845546,1719861039336,-29953.0879172,0.000218,2]
[330845547,1719861039350,-1759.82274819,0.000218,2]
[330845548,1719861040136,-27310.18193461,0.000218,2]
[330845549,1719861040147,-2648.8342571,0.000218,7]
[330845550,1719861040156,-491.0,0.000218,4]
[330845551,1719861040167,-257.0,0.000218,2]
[330845552,1719861040177,-191.0,0.000218,4]
[330845553,1719861040186,-4363.16681724,0.00021803,2]
[330845554,1719861040195,-150.0,0.00021804,2]
[330845555,1719861040204,-1667.28495652,0.00021807,2]
[330845556,1719861040216,-4757.98834764,0.00021807,2]
[330845557,1719861040227,-119.4769217,0.00021807,2]
[330845558,1719861040237,-131.61727598,0.00021813,2]
[330845612,1719861043200,-2689.55053242,0.00021813,2]
[330845613,1719861043532,-1919.35098878,0.00021813,2]
[330845615,1719861045946,-2759.48120282,0.00021813,2]
[330845618,1719861045956,-2181.58340862,0.00021815,2]
[330845619,1719861045965,-182.04870981,0.00021816,2]
[330845621,1719861045975,-171.41496921,0.00021817,2]
[330845624,1719861045984,-166.99151512,0.00021817,2]
[330845628,1719861045994,-1171.74600743,0.00021817,2]
[330845630,1719861046003,-5008.18937066,0.00021817,2]
[330845634,1719861046013,-505.05224925,0.00021817,2]
[330845637,1719861046022,-835.0,0.00021825,2]
[330845640,1719861046031,-150.0,0.00021828,2]
[330845643,1719861046040,-2181.58340862,0.00021833,2]
[330845645,1719861046050,-9353.61856266,0.00021843,2]
[330845647,1719861046059,-150.0,0.00021855,2]
[330845649,1719861046069,-150.0,0.00021859,2]
[330845650,1719861046079,-12762.29138076,0.00021869,3]
[330845651,1719861046088,-4363.16681724,0.0002187,2]
[330845652,1719861046097,-1171.74600742,0.0002187,2]
[330845653,1719861046107,-6544.75022586,0.00021871,2]
[330845655,1719861046116,-4363.16681724,0.00021872,2]
[330845657,1719861046125,-6544.75022586,0.00021872,2]
[330845659,1719861046135,-12737.09232284,0.00021873,2]
[330845729,1719861334538,1503.5123069,0.00011199,2]
[330845741,1719861390829,1903.88451984,0.000222,120]
[330845744,1719861442549,155.0,0.00011199,2]
[330845746,1719861467986,206.17373388,0.00011199,2]
[330845747,1719861482423,5886.5936305,0.00011199,2]
[330845748,1719861482448,4113.4063695,0.00011199,2]
[330845749,1719861487804,196.17673017,0.00011199,2]
[330845750,1719861496173,186.52661499,0.00011199,2]
[330845751,1719861508479,411.47785028,0.00011199,2]
[330845752,1719861529702,222.61749785,0.00011199,2]
[330845753,1719861551794,155.0,0.00011199,2]
[330845755,1719861618237,1380.40369576,0.00011199,2]
[330845761,1719861860363,155.26250993,0.00011199,2]
[330845762,1719861930338,4179.12873152,0.00011199,2]
[330845763,1719861930365,15441.13521216,0.00011199,2]
[330845764,1719861938043,206.0809587,0.00011199,2]
[330845765,1719861942903,364.27979649,0.00011199,2]
[330845766,1719861974776,8094.46821541,0.00011199,2]
[330845767,1719862021172,155.0,0.00011199,2]
[330845774,1719862232135,-169.52855366,0.00012202,2]
[330845775,1719862232145,-125.91958818,0.00012202,2]
[330845776,1719862232163,-139.42262954,0.00012202,2]
[330845777,1719862232175,-365.05601346,0.00012273,2]
[330845779,1719862232184,-155.0,0.00012302,2]
[330845780,1719862232194,-96.55946401,0.00013128,2]
[330845781,1719862232458,-318.92797644,0.00013128,2]
[330845783,1719862232467,-1929.74839184,0.00013128,2]
[330845786,1719862232478,-3453.39443278,0.00013128,2]
[330845788,1719862232487,-805.65610875,0.00013472,2]
[330845790,1719862232496,-285.86312721,0.00013574,2]
[330845792,1719862232505,-500.0,0.00014519,2]
[330845794,1719862232514,-500.0,0.00014519,2]
[330845796,1719862232522,-500.0,0.00014519,2]
[330845798,1719862232532,-500.0,0.00014519,2]
[330845800,1719862232541,-500.0,0.00014519,2]
[330845802,1719862232551,-300.0,0.00016163,2]
[330845804,1719862232560,-500.0,0.00016163,2]
[330845806,1719862232569,-491.76,0.00017316,2]
[330845808,1719862232578,-499.99,0.00017808,2]
[330845810,1719862232587,-1629.52644516,0.00018081,2]
[330845812,1719862232596,-625.64470959,0.00018739,2]
[330845814,1719862232607,-150.99,0.00018835,2]
[330845816,1719862232616,-234.95160622,0.00018835,2]
[330845818,1719862232630,-474.06171216,0.00018864,2]
[330845820,1719862232640,-684.75373736,0.00018899,2]
[330845822,1719862232650,-378.6472136,0.00018899,2]
[330845824,1719862232659,-201.85586461,0.00018919,2]
[330845826,1719862232668,-155.0,0.00018919,2]
[330845828,1719862232677,-227.0716558,0.00019069,2]
[330845830,1719862232686,-1000.0,0.00019169,2]
[330845832,1719862232696,-164.88,0.00019172,2]
[330845834,1719862232706,-250.0,0.00019178,2]
[330845836,1719862232715,-913.01,0.00019194,30]
[330845838,1719862232724,-338.53,0.0001921,2]
[330845840,1719862232733,-343.71,0.0001922,2]
[330845842,1719862232743,-512.19400641,0.00019229,2]
[330845844,1719862232753,-442.73989055,0.00019229,2]
[330845846,1719862232763,-170.86,0.00019245,2]
[330845848,1719862232772,-250.0,0.00019247,2]
[330845850,1719862232782,-250.0,0.00019254,2]
[330845852,1719862232792,-12823.37,0.00019296,2]
[330845854,1719862232807,-150.0,0.00019378,2]
[330845856,1719862232816,-150.39,0.00019547,2]
[330845859,1719862232825,-491.76,0.00019579,2]
[330845861,1719862232834,-150.00000001,0.00019701,4]
[330845863,1719862232844,-2935.0,0.000198,3]
[330845864,1719862232852,-3226.35,0.00020017,2]
[330845867,1719862232862,-729.19,0.00020017,2]
[330845869,1719862232872,-2500.0,0.000205,2]
[330845871,1719862232881,-150.39,0.00020566,2]
[330845873,1719862232890,-182.23597,0.00020629,2]
[330845875,1719862232900,-186.21,0.0002073,2]
[330845877,1719862232910,-186.21,0.00020735,2]
[330845879,1719862232919,-186.21,0.00020741,2]
[330845881,1719862232928,-186.21,0.00020746,2]
[330845883,1719862232938,-186.21,0.00020752,2]
[330845885,1719862232948,-186.21,0.00020757,2]
[330845887,1719862232958,-186.21,0.00020763,2]
[330845889,1719862232967,-186.21,0.00020768,2]